{"text_format":"1","workbook":"xlsx","n_sheets":7,"sheets":["84-ELECTRICIDAD","85-ELECTRONICA","87-MECANICA","88-QUIMICA","89-DISEÑO","134-ORGANIZACION","136-AERONAUTICA"],"not_rendered":{"charts":0,"images":0,"macros":0,"external_links":0,"defined_names":8,"comments":0,"pivot_tables":0},"unopened":[],"bounds":{"document_bytes":16777216,"sheet_cells":100000,"rows_first":2000,"rows_last":500,"rows_between":2000,"halvings":0,"cell_chars":16384,"cell_head_chars":4096},"cells_cut":0,"cells_raw":0,"read":"whole","date_system":"1900"}

{"sheet":"84-ELECTRICIDAD","index":0,"n_rows":89,"n_cols":16,"rows_kept":89,"cut":false,"hidden":false,"merged":[[68,15,72,15],[62,15,66,15],[46,15,50,15],[51,15,55,15],[40,1,44,1],[51,1,55,1],[84,1,88,1],[68,1,72,1],[79,1,83,1],[62,1,66,1],[73,1,77,1],[18,15,22,15],[13,1,17,1],[73,15,77,15],[29,1,33,1],[29,15,33,15],[57,1,61,1],[46,1,50,1],[57,15,61,15],[35,1,39,1],[35,15,39,15],[0,0,0,15],[2,1,6,1],[2,15,6,15],[7,1,11,1],[7,15,11,15],[40,15,44,15],[13,15,17,15],[24,1,28,1],[24,15,28,15],[18,1,22,1]]}
["I. T. I. ESP. ELECTRICIDAD"]
[null,null,"LUNES",11,"MARTES",{"$f":"D2+1","v":12},"MIERCOLES",{"$f":"F2+1","v":13},"JUEVES",{"$f":"H2+1","v":14},"VIERNES",{"$f":"J2+1","v":15},"SABADO",16]
["1º","MAÑANA  9 h.",null,null,null,null,null,null,null,null,null,null,null,null,"1º","MAÑANA  9 h."]
["2º",null,null,null,"Electrónica Industrial","N14",null,null,null,null,null,null,null,null,"2º"]
["3º",null,null,null,null,null,null,null,null,null,null,null,null,null,"3º"]
["OP",null,"Domótica","S01",null,null,null,null,"Operación Remota y Nuevas Tecnologías en  Sistemas Eléctricos","S32",null,null,"Tecnología de Prevención","S01","OP"]
["LE",null,null,null,null,null,"Introducción a los Biomateriales (D.Ter)","N13",null,null,null,null,null,null,"LE"]
["1º","TARDE  16 h.",null,null,null,null,null,null,null,null,null,null,null,null,"1º","TARDE  16 h."]
["2º",null,null,null,null,null,null,null,null,null,null,null,null,null,"2º"]
["3º",null,null,null,null,null,null,null,null,null,"Centrales Eléctricas","S02, S03",null,null,"3º"]
["OP",null,null,null,"Tracción  Eléctrica","N08","Metodología, Organización y Gestión de la Prevención","N08","Laboratorio de Regulación Automática","N08",null,null,null,null,"OP"]
["LE",null,null,null,"Physical Concepts In Historical And Cultural Perspective","R.Alonso",null,null,"Contaminación Ambiental y Acústica","R.Alonso",null,null,null,null,"LE"]
[null,null,"LUNES",{"$f":"L2+3","v":18},"MARTES",{"$f":"D13+1","v":19},"MIERCOLES",{"$f":"F13+1","v":20},"JUEVES",{"$f":"H13+1","v":21},"VIERNES",{"$f":"J13+1","v":22},"SABADO",23]
["1º","MAÑANA  9 h.",null,null,null,null,null,null,null,null,null,null,null,null,"1º","MAÑANA  9 h."]
["2º",null,null,null,"Máquinas Eléctricas","N05, N06",null,null,"Teoría de Mecanismos y Estructuras","S15",null,null,null,null,"2º"]
["3º",null,null,null,null,null,"Oficina Técnica","N32, N33",null,null,null,null,null,null,"3º"]
["OP",null,"Instalaciones Eléctricas de Energías Alternativas y Cálculo de Líneas Eléctricas","N32, N33",null,null,null,null,null,null,"Regulación y Protección Máquinas Eléctricas","N01",null,null,"OP"]
["LE",null,"Instalaciones de Energía Solar Fotovoltaica","N32",null,null,null,null,null,null,null,null,null,null,"LE"]
["1º","TARDE  16 h.",null,null,null,null,null,null,null,null,null,null,null,null,"1º","TARDE  16 h."]
["2º",null,null,null,null,null,null,null,null,null,null,null,null,null,"2º"]
["3º",null,null,null,null,null,null,null,null,null,null,null,null,null,"3º"]
["OP",null,null,null,"Gestión Eficiente de la Energía Eléctrica","N08",null,null,null,null,"Nuevas Tecnologías en Ingeniería Eléctrica","N01",null,null,"OP"]
["LE",null,null,null,null,null,null,null,null,null,null,null,null,null,"LE"]
[null,null,"LUNES",{"$f":"L13+3","v":25},"MARTES",26,"MIERCOLES",27,"JUEVES",{"$f":"H24+1","v":28},"VIERNES",{"$f":"J24+1","v":29},"SABADO",30]
["1º","MAÑANA  9 h.","Fundamentos Físicos de la Ingeniería","S01, S02",null,null,null,null,"Ampliación de Matemáticas en Ingeniería Mecánica","S03, S04","Circuitos","N01",null,null,"1º","MAÑANA  9 h."]
["2º",null,null,null,"Materiales Eléctricos y Magnéticos","N01","Administración de Empresas y Organización de la Producción","S01,2,3y4",null,null,null,null,null,null,"2º"]
["3º",null,null,null,null,null,null,null,null,null,"Instalaciones Eléctricas","N32",null,null,"3º"]
["OP",null,"Historia de la Ciencia y la Tecnología","S.J.",null,null,null,null,null,null,null,null,null,null,"OP"]
["LE",null,null,null,null,null,null,null,null,null,null,null,null,null,"LE"]
["1º","TARDE  16 h.",null,null,null,null,null,null,null,null,null,null,null,null,"1º","TARDE  16 h."]
["2º",null,null,null,null,null,null,null,"Regulación Automática","N01",null,null,null,null,"2º"]
["3º",null,null,null,"Transporte de Energía Eléctrica","S03, S04",null,null,null,null,null,null,null,null,"3º"]
["OP",null,null,null,null,null,"Idioma 2","N01,3,5,8",null,null,null,null,null,null,"OP"]
["LE",null,null,null,null,null,"Inglés: Comprensión y Expresión Oral y Escrita","N01",null,null,null,null,null,null,"LE"]
[null,null,"LUNES",2,"MARTES",3,"MIERCOLES",4,"JUEVES",{"$f":"H35+1","v":5},"VIERNES",{"$f":"J35+1","v":6},"SABADO",7]
["1º","MAÑANA  9 h.",null,null,"Fundamentos Matemáticos de la Ingeniería","S01, S02","Electricidad para la Ingeniería Mecánica","S01, S02","Fundamentos de Informática","S03, S04","Expresión Gráfica y Diseño Asistido por Ordenador","S02, S03",null,null,"1º","MAÑANA  9 h."]
["2º",null,"Métodos Estadísticos de la Ingeniería","S01,2,3y4",null,null,null,null,null,null,null,null,null,null,"2º"]
["3º",null,null,null,null,null,null,null,null,null,null,null,null,null,"3º"]
["OP",null,null,null,"Prevención y Seguridad en la Ingeniería","N01",null,null,null,null,"Expresión Gráfica y Diseño Asistido por Ordenador - II","S02, S03",null,null,"OP"]
["LE",null,null,null,null,null,null,null,null,null,null,null,null,null,"LE"]
["1º","TARDE  16 h.",null,null,"Electrometría","D.I.E.",null,null,null,null,null,null,null,null,"1º","TARDE  16 h."]
["2º",null,null,null,null,null,null,null,null,null,null,null,null,null,"2º"]
["3º",null,null,null,null,null,null,null,null,null,null,null,null,null,"3º"]
["OP",null,"Tecnología Eléctrica","N08","Instalaciones Electroneumáticas","D.I.E.","Ingeniería Térmica","N01","Química para la Ingeniería","N06","Idioma 1","N05,6,7,8",null,null,"OP"]
["LE",null,null,null,"Música para la Imagen","D.I.E.",null,null,null,null,null,null,null,null,"LE"]
[null,null,"LUNES",{"$f":"D35+7","v":9},"MARTES",{"$f":"F35+7","v":10},"MIERCOLES",{"$f":"H35+7","v":11},"JUEVES",{"$f":"H46+1","v":12},"VIERNES",{"$f":"J46+1","v":13},"SABADO",{"$f":"L46+1","v":14}]
["1º","MAÑANA  9 h.",null,null,null,null,null,null,null,null,null,null,null,null,"1º","MAÑANA  9 h."]
["2º",null,null,null,null,null,null,null,null,null,null,null,null,null,"2º"]
["3º",null,null,null,null,null,null,null,null,null,null,null,null,null,"3º"]
["OP",null,null,null,null,null,null,null,null,null,null,null,null,null,"OP"]
["LE",null,null,null,null,null,null,null,null,null,null,null,null,null,"LE"]
["1º","TARDE  16 h.",null,null,null,null,null,null,null,null,null,null,null,null,"1º","TARDE  16 h."]
["2º",null,null,null,null,null,null,null,null,null,null,null,null,null,"2º"]
["3º",null,null,null,null,null,null,null,null,null,null,null,null,null,"3º"]
["OP",null,null,null,null,null,null,null,null,null,null,null,null,null,"OP"]
["LE",null,null,null,null,null,null,null,null,null,null,null,null,null,"LE"]
[null,null,"LUNES",{"$f":"D46+7","v":16},"MARTES",{"$f":"F46+7","v":17},"MIERCOLES",{"$f":"H46+7","v":18},"JUEVES",{"$f":"H57+1","v":19},"VIERNES",{"$f":"J57+1","v":20},"SABADO",{"$f":"L57+1","v":21}]
["1º","MAÑANA  9 h.","Electrometría","D.I.E.",null,null,"Fundamentos Físicos de la Ingeniería","S01",null,null,"Ampliación de Matemáticas en Ingeniería Mecánica","S04",null,null,"1º","MAÑANA  9 h."]
["2º",null,null,null,"Electrónica Industrial","N01",null,null,"Máquinas Eléctricas","S01",null,null,null,null,"2º"]
["3º",null,null,null,null,null,null,null,null,null,null,null,null,null,"3º"]
["OP",null,"Domótica","N01",null,null,"Operación Remota y Nuevas Tecnologías en  Sistemas Eléctricos","N01",null,null,"Centrales Eléctricas","N21,N22",null,null,"OP"]
["LE",null,null,null,null,null,null,null,null,null,null,null,null,null,"LE"]
["1º","TARDE  16 h.",null,null,null,null,null,null,null,null,null,null,null,null,"1º","TARDE  16 h."]
["2º",null,null,null,null,null,null,null,null,null,null,null,null,null,"2º"]
["3º",null,null,null,null,null,null,null,null,null,null,null,null,null,"3º"]
["OP",null,"Tracción  Eléctrica","N08","Laboratorio de Regulación Automática","N08","Nuevas Tecnologías en Ingeniería Eléctrica","N06","Idioma 2","N05,6,7,8",null,null,null,null,"OP"]
["LE",null,"Physical Concepts In Historical And Cultural Perspective","A.Nostrum",null,null,"Introducción a los Biomateriales (D.Ter)","N05","Inglés: Comprensión y Expresión Oral y Escrita","N06",null,null,null,null,"LE"]
[null,null,"LUNES",{"$f":"D57+7","v":23},"MARTES",{"$f":"F57+7","v":24},"MIERCOLES",{"$f":"H57+7","v":25},"JUEVES",{"$f":"H68+1","v":26},"VIERNES",{"$f":"J68+1","v":27},"SABADO",{"$f":"L68+1","v":28}]
["1º","MAÑANA  9 h.",null,null,"Fundamentos Matemáticos de la Ingeniería","S04",null,null,null,null,null,null,null,null,"1º","MAÑANA  9 h."]
["2º",null,"Teoría de Mecanismos y Estructuras","S15",null,null,"Métodos Estadísticos de la Ingeniería","S01,S02",null,null,"Materiales Eléctricos y Magnéticos","N01",null,null,"2º"]
["3º",null,null,null,"Instalaciones de Energía Solar Fotovoltaica","N32",null,null,null,null,null,null,null,null,"3º"]
["OP",null,null,null,"Instalaciones Eléctricas de Energías Alternativas y Cálculo de Líneas Eléctricas","N32",null,null,"Transporte de Energía Eléctrica","N21,N22",null,null,null,null,"OP"]
["LE",null,null,null,"Música para la Imagen","N32",null,null,null,null,null,null,null,null,"LE"]
["1º","TARDE  16 h.",null,null,null,null,null,null,null,null,null,null,null,null,"1º","TARDE  16 h."]
["2º",null,null,null,null,null,null,null,null,null,null,null,null,null,"2º"]
["3º",null,"Oficina Técnica","N32, N33",null,null,null,null,null,null,null,null,null,null,"3º"]
["OP",null,null,null,null,null,"Gestión Eficiente de la Energía Eléctrica","N08","Regulación y Protección Máquinas Eléctricas","N01","Tecnología de Prevención","S01",null,null,"OP"]
["LE",null,null,null,null,null,null,null,null,null,"Metodología, Organización y Gestión de la Prevención","S01",null,null,"LE"]
[null,null,"LUNES",{"$f":"D68+7","v":30},"MARTES",{"$f":"F68+7","v":31}]
["1º","MAÑANA  9 h."]
["2º"]
["3º"]
["OP",null,"Historia de la Ciencia y la Tecnología","S.J."]
["LE"]
["1º","TARDE  16 h."]
["2º"]
["3º"]
["OP"]
["LE"]

{"sheet":"85-ELECTRONICA","index":1,"n_rows":89,"n_cols":16,"rows_kept":89,"cut":false,"hidden":false,"merged":[[29,15,33,15],[2,1,6,1],[7,1,11,1],[7,15,11,15],[2,15,6,15],[24,15,28,15],[24,1,28,1],[35,1,39,1],[29,1,33,1],[0,0,0,15],[13,15,17,15],[18,15,22,15],[13,1,17,1],[18,1,22,1],[35,15,39,15],[84,1,88,1],[68,1,72,1],[79,1,83,1],[51,15,55,15],[68,15,72,15],[73,1,77,1],[73,15,77,15],[62,1,66,1],[40,15,44,15],[62,15,66,15],[40,1,44,1],[57,1,61,1],[51,1,55,1],[46,15,50,15],[46,1,50,1],[57,15,61,15]]}
["I. T. I. ESP. ELECTRONICA INDUSTRIAL"]
[null,null,"LUNES",11,"MARTES",{"$f":"D2+1","v":12},"MIERCOLES",{"$f":"F2+1","v":13},"JUEVES",{"$f":"H2+1","v":14},"VIERNES",{"$f":"J2+1","v":15},"SABADO",16]
["1º","MAÑANA  9 h.",null,null,null,null,"Tecnología Electrónica","S33",null,null,null,null,null,null,"1º","MAÑANA  9 h."]
["2º",null,"Regulación Automática","S04",null,null,null,null,null,null,null,null,null,null,"2º"]
["3º",null,null,null,null,null,null,null,null,null,"Electrónica de Potencia","S03, S04",null,null,"3º"]
["OP",null,null,null,"Accionamientos Electromecánicos e Industriales","Paris Alem",null,null,"Procesos Tecnológicos en el Diseño Electrónico y Microelectrónico","N33",null,null,"Tecnología de Prevención","S01","OP"]
["LE",null,null,null,null,null,null,null,null,null,null,null,null,null,"LE"]
["1º","TARDE  16 h.",null,null,null,null,null,null,null,null,null,null,null,null,"1º","TARDE  16 h."]
["2º",null,null,null,null,null,null,null,"Informática Industrial","Aitana",null,null,null,null,"2º"]
["3º",null,null,null,null,null,"Metodología, Organización y Gestión de la Prevención","N08",null,null,null,null,null,null,"3º"]
["OP",null,"Técnicas Avanzadas de Control","N32","Sistemas Electrónicos Industriales Avanzados","N22","Diseño de Sistemas Informáticos Industriales","S33",null,null,null,null,null,null,"OP"]
["LE",null,null,null,"Ciencia y Visión del Color","Alemania",null,null,null,null,null,null,null,null,"LE"]
[null,null,"LUNES",{"$f":"L2+3","v":18},"MARTES",{"$f":"D13+1","v":19},"MIERCOLES",{"$f":"F13+1","v":20},"JUEVES",{"$f":"H13+1","v":21},"VIERNES",{"$f":"J13+1","v":22},"SABADO",23]
["1º","MAÑANA  9 h.",null,null,null,null,null,null,null,null,null,null,null,null,"1º","MAÑANA  9 h."]
["2º",null,"Instrumentación Electrónica","S01",null,null,"Sistemas Mecánicos","S04",null,null,null,null,null,null,"2º"]
["3º",null,null,null,null,null,null,null,null,null,"Automatización Industrial","S03, S04",null,null,"3º"]
["OP",null,null,null,"Sensores","N14",null,null,"Gestión y Utilización de Redes Locales","N08",null,null,null,null,"OP"]
["LE",null,"Instrumentación Biomédica","S33",null,null,null,null,"Introducción a las Herramientas de Desarrollo de Microcontroladores Pic","N33",null,null,null,null,"LE"]
["1º","TARDE  16 h.",null,null,null,null,null,null,"Teoría de Circuitos","N01",null,null,null,null,"1º","TARDE  16 h."]
["2º",null,null,null,null,null,null,null,null,null,null,null,null,null,"2º"]
["3º",null,null,null,null,null,null,null,null,null,null,null,null,null,"3º"]
["OP",null,"Control de Procesos por Computador","N25","Gestión Eficiente de la Energía Eléctrica","N08","Periféricos e Interfaces Industriales","S33",null,null,null,null,null,null,"OP"]
["LE",null,null,null,null,null,null,null,null,null,null,null,null,null,"LE"]
[null,null,"LUNES",{"$f":"L13+3","v":25},"MARTES",26,"MIERCOLES",27,"JUEVES",{"$f":"H24+1","v":28},"VIERNES",{"$f":"J24+1","v":29},"SABADO",30]
["1º","MAÑANA  9 h.","Fundamentos Físicos de la Ingeniería","S01, S02",null,null,null,null,"Ampliación de Matemáticas en Ingeniería Mecánica","S03, S04",null,null,null,null,"1º","MAÑANA  9 h."]
["2º",null,null,null,null,null,null,null,null,null,null,null,null,null,"2º"]
["3º",null,null,null,null,null,"Administración de Empresas y Organización de la Producción","S01,2,3y4",null,null,null,null,null,null,"3º"]
["OP",null,"Historia de la Ciencia y la Tecnología","S.J.","Eines Multimèdia per a Control","S15",null,null,"Mantenimiento de Instalaciones Eléctricas Industriales","N01","Técnicas Electrónicas de Medida","N21",null,null,"OP"]
["LE",null,null,null,null,null,null,null,null,null,null,null,null,null,"LE"]
["1º","TARDE  16 h.",null,null,null,null,null,null,null,null,null,null,null,null,"1º","TARDE  16 h."]
["2º",null,null,null,"Electrónica Analógica","N01",null,null,null,null,null,null,null,null,"2º"]
["3º",null,null,null,null,null,null,null,"Oficina Técnica","S01,2,3y4",null,null,null,null,"3º"]
["OP",null,"Aplicaciones Industriales de Tecnología Eléctrica","N21",null,null,"Idioma 2","N01,3,5,8",null,null,null,null,null,null,"OP"]
["LE",null,null,null,"Robótica Móvil","N21",null,null,null,null,null,null,null,null,"LE"]
[null,null,"LUNES",2,"MARTES",3,"MIERCOLES",4,"JUEVES",{"$f":"H35+1","v":5},"VIERNES",{"$f":"J35+1","v":6},"SABADO",{"$f":"L35+1","v":7}]
["1º","MAÑANA  9 h.",null,null,"Fundamentos Matemáticos de la Ingeniería","S01, S02","Electricidad para la Ingeniería Mecánica","S01, S02","Fundamentos de Informática","S03, S04","Expresión Gráfica y Diseño Asistido por Ordenador","S02, S03",null,null,"1º","MAÑANA  9 h."]
["2º",null,"Métodos Estadísticos de la Ingeniería","S01,2,3y4",null,null,null,null,null,null,null,null,null,null,"2º"]
["3º",null,null,null,null,null,null,null,null,null,null,null,null,null,"3º"]
["OP",null,"Fiabilidad, Garantía y Mantenimiento Preventivo","S02","Prevención y Seguridad en la Ingeniería","N01",null,null,null,null,"Expresión Gráfica y Diseño Asistido por Ordenador - II","S02, S03",null,null,"OP"]
["LE",null,null,null,null,null,null,null,null,null,null,null,null,null,"LE"]
["1º","TARDE  16 h.",null,null,null,null,null,null,null,null,null,null,null,null,"1º","TARDE  16 h."]
["2º",null,null,null,null,null,"Electrónica Digital","S15",null,null,null,null,null,null,"2º"]
["3º",null,null,null,null,null,null,null,null,null,null,null,null,null,"3º"]
["OP",null,"Dispositivos Fotónicos","S33","Instalaciones Electroneumáticas","D.I.E.","Ingeniería Térmica","N01","Química para la Ingeniería","N06","Idioma 1","N05,6,7,8",null,null,"OP"]
["LE",null,null,null,null,null,null,null,null,null,null,null,null,null,"LE"]
[null,null,"LUNES",{"$f":"D35+7","v":9},"MARTES",{"$f":"F35+7","v":10},"MIERCOLES",{"$f":"H35+7","v":11},"JUEVES",{"$f":"H46+1","v":12},"VIERNES",{"$f":"J46+1","v":13},"SABADO",{"$f":"L46+1","v":14}]
["1º","MAÑANA  9 h.",null,null,null,null,null,null,null,null,null,null,null,null,"1º","MAÑANA  9 h."]
["2º",null,null,null,null,null,null,null,null,null,null,null,null,null,"2º"]
["3º",null,null,null,null,null,null,null,null,null,null,null,null,null,"3º"]
["4º",null,null,null,null,null,null,null,null,null,null,null,null,null,"4º"]
["5º",null,null,null,null,null,null,null,null,null,null,null,null,null,"5º"]
["1º","TARDE  16 h.",null,null,null,null,null,null,null,null,null,null,null,null,"1º","TARDE  16 h."]
["2º",null,null,null,null,null,null,null,null,null,null,null,null,null,"2º"]
["3º",null,null,null,null,null,null,null,null,null,null,null,null,null,"3º"]
["4º",null,null,null,null,null,null,null,null,null,null,null,null,null,"4º"]
["5º",null,null,null,null,null,null,null,null,null,null,null,null,null,"5º"]
[null,null,"LUNES",{"$f":"D46+7","v":16},"MARTES",{"$f":"F46+7","v":17},"MIERCOLES",{"$f":"H46+7","v":18},"JUEVES",{"$f":"H57+1","v":19},"VIERNES",{"$f":"J57+1","v":20},"SABADO",{"$f":"L57+1","v":21}]
["1º","MAÑANA  9 h.","Tecnología Electrónica","S15",null,null,"Fundamentos Físicos de la Ingeniería","S01",null,null,"Ampliación de Matemáticas en Ingeniería Mecánica","S04",null,null,"1º","MAÑANA  9 h."]
["2º",null,null,null,"Regulación Automática","S01",null,null,"Informática Industrial","N01",null,null,null,null,"2º"]
["3º",null,null,null,null,null,null,null,null,null,"Electrónica de Potencia","S01, S02",null,null,"3º"]
["OP",null,"Técnicas Avanzadas de Control","N05",null,null,"Sistemas Electrónicos Industriales Avanzados","N05",null,null,null,null,null,null,"OP"]
["LE",null,null,null,"Ciencia y Visión del Color","S15",null,null,null,null,null,null,null,null,"LE"]
["1º","TARDE  16 h.",null,null,null,null,null,null,null,null,null,null,null,null,"1º","TARDE  16 h."]
["2º",null,null,null,null,null,null,null,null,null,null,null,null,null,"2º"]
["3º",null,null,null,null,null,null,null,"Eines Multimèdia per a Control","S15",null,null,null,null,"3º"]
["OP",null,"Accionamientos Electromecánicos e Industriales","N05","Procesos Tecnológicos en el Diseño Electrónico y Microelectrónico","N05","Diseño de Sistemas Informáticos Industriales","N08","Idioma 2","N05,6,7,8","Control de Procesos por Computador","N01",null,null,"OP"]
["LE",null,null,null,"Introducción a las Herramientas de Desarrollo de Microcontroladores Pic","N06",null,null,null,null,null,null,null,null,"LE"]
[null,null,"LUNES",{"$f":"D57+7","v":23},"MARTES",{"$f":"F57+7","v":24},"MIERCOLES",{"$f":"H57+7","v":25},"JUEVES",{"$f":"H68+1","v":26},"VIERNES",{"$f":"J68+1","v":27},"SABADO",{"$f":"L68+1","v":28}]
["1º","MAÑANA  9 h.",null,null,"Fundamentos Matemáticos de la Ingeniería","S04",null,null,"Teoría de Circuitos","N01",null,null,null,null,"1º","MAÑANA  9 h."]
["2º",null,"Instrumentación Electrónica","N01",null,null,"Sistemas Mecánicos","N21",null,null,null,null,null,null,"2º"]
["3º",null,null,null,"Automatización Industrial","S01, S02",null,null,"Administración de Empresas y Organización de la Producción","S03,S04",null,null,null,null,"3º"]
["OP",null,null,null,null,null,null,null,null,null,null,null,null,null,"OP"]
["LE",null,"Instrumentación Biomédica","N02",null,null,"Robótica Móvil","S15",null,null,null,null,null,null,"LE"]
["1º","TARDE  16 h.",null,null,null,null,null,null,null,null,null,null,null,null,"1º","TARDE  16 h."]
["2º",null,null,null,null,null,null,null,null,null,null,null,null,null,"2º"]
["3º",null,null,null,null,null,null,null,null,null,null,null,null,null,"3º"]
["OP",null,"Sensores","N05","Periféricos e Interfaces Industriales","N08","Gestión Eficiente de la Energía Eléctrica","N08","Gestión y Utilización de Redes Locales","N05","Tecnología de Prevención","S01",null,null,"OP"]
["LE",null,null,null,null,null,null,null,null,null,"Metodología, Organización y Gestión de la Prevención","S01",null,null,"LE"]
[null,null,"LUNES",{"$f":"D68+7","v":30},"MARTES",{"$f":"F68+7","v":31}]
["1º","MAÑANA  9 h."]
["2º"]
["3º"]
["OP"]
["LE"]
["1º","TARDE  16 h."]
["2º"]
["3º"]
["OP"]
["LE"]

{"sheet":"87-MECANICA","index":2,"n_rows":89,"n_cols":16,"rows_kept":89,"cut":false,"hidden":false,"merged":[[29,15,33,15],[2,1,6,1],[7,1,11,1],[7,15,11,15],[2,15,6,15],[24,15,28,15],[24,1,28,1],[35,1,39,1],[29,1,33,1],[0,0,0,15],[13,15,17,15],[18,15,22,15],[13,1,17,1],[18,1,22,1],[35,15,39,15],[84,1,88,1],[68,1,72,1],[79,1,83,1],[51,15,55,15],[68,15,72,15],[73,1,77,1],[73,15,77,15],[62,1,66,1],[40,15,44,15],[62,15,66,15],[40,1,44,1],[57,1,61,1],[51,1,55,1],[46,15,50,15],[46,1,50,1],[57,15,61,15]]}
["I. T. I. ESP. MECANICA"]
[null,null,"LUNES",11,"MARTES",{"$f":"D2+1","v":12},"MIERCOLES",{"$f":"F2+1","v":13},"JUEVES",{"$f":"H2+1","v":14},"VIERNES",{"$f":"J2+1","v":15},"SABADO",16]
["1º","MAÑANA  9 h.",null,null,null,null,null,null,null,null,null,null,null,null,"1º","MAÑANA  9 h."]
["2º",null,null,null,null,null,"Tecnología Mecánica","N32, N33",null,null,null,null,null,null,"2º"]
["3º",null,null,null,null,null,null,null,null,null,null,null,null,null,"3º"]
["OP",null,"Materiales de Construcción Maquinaria y Automoción","N03","Diseño de Máquinas - II","N21, N22",null,null,"Biomecánica y Entrenamiento Deportivo","Bmunari","Estructuras Metálicas","N32","Tecnología de Prevención","S01","OP"]
["LE",null,null,null,null,null,null,null,null,null,null,null,null,null,"LE"]
["1º","TARDE  16 h.",null,null,"Fundamentos de Ciencias de Materiales","N25",null,null,null,null,null,null,null,null,"1º","TARDE  16 h."]
["2º",null,"Fundamentos de Tecnología Eléctrica","S04",null,null,null,null,null,null,"Elasticidad y Resistencia de Materiales","S04",null,null,"2º"]
["3º",null,null,null,null,null,null,null,null,null,null,null,null,null,"3º"]
["OP",null,null,null,null,null,"Metodología, Organización y Gestión de la Prevención","N08","Instalaciones Térmicas en la Edificación","S33",null,null,null,null,"OP"]
["LE",null,null,null,null,null,null,null,null,null,null,null,null,null,"LE"]
[null,null,"LUNES",{"$f":"L2+3","v":18},"MARTES",{"$f":"D13+1","v":19},"MIERCOLES",{"$f":"F13+1","v":20},"JUEVES",{"$f":"H13+1","v":21},"VIERNES",{"$f":"J13+1","v":22},"SABADO",23]
["1º","MAÑANA  9 h.",null,null,null,null,null,null,null,null,null,null,null,null,"1º","MAÑANA  9 h."]
["2º",null,null,null,null,null,null,null,"Ingeniería Fluidomecánica","N25",null,null,null,null,"2º"]
["3º",null,null,null,null,null,null,null,null,null,null,null,null,null,"3º"]
["OP",null,"Automóviles","N26","Tecnología de Fabricación","S04","Dibujo Asistido por Ordenador, Aplicaciones Mecánicas","Paris",null,null,"Estructuras de Hormigón y Material Compuesto","N32",null,null,"OP"]
["LE",null,null,null,null,null,null,null,null,null,null,null,null,null,"LE"]
["1º","TARDE  16 h.",null,null,null,null,null,null,null,null,null,null,null,null,"1º","TARDE  16 h."]
["2º",null,null,null,null,null,null,null,null,null,null,null,null,null,"2º"]
["3º",null,null,null,null,null,null,null,null,null,null,null,null,null,"3º"]
["OP",null,"Instalaciones de Fluidos","S01","Centrales Térmicas","S04","Regulación y Automatización de Máquinas y Procesos","Aitana","Energia Solar Fototérmica\nGestión, Planificación y Control de la Producción","S33\nN25","Gestión de Instalaciones Energéticas","S04",null,null,"OP"]
["LE",null,null,null,null,null,null,null,null,null,null,null,null,null,"LE"]
[null,null,"LUNES",{"$f":"L13+3","v":25},"MARTES",26,"MIERCOLES",27,"JUEVES",{"$f":"H24+1","v":28},"VIERNES",{"$f":"J24+1","v":29},"SABADO",30]
["1º","MAÑANA  9 h.","Fundamentos Físicos de la Ingeniería","S01, S02",null,null,null,null,"Ampliación de Matemáticas en Ingeniería Mecánica","S03, S04",null,null,null,null,"1º","MAÑANA  9 h."]
["2º",null,null,null,"Mecánica y Teoria de Mecanismos","S01,2,3y4",null,null,null,null,"Ingeniería Térmica","S01, S02",null,null,"2º"]
["3º",null,null,null,null,null,"Administración de Empresas y Organización de la Producción","S01,2,3y4",null,null,null,null,null,null,"3º"]
["OP",null,"Historia de la Ciencia y la Tecnología","S.J.",null,null,null,null,null,null,null,null,null,null,"OP"]
["LE",null,"Motores de Competicion","N32",null,null,null,null,"Ampliación de Motores de Combustión","S01",null,null,null,null,"LE"]
["1º","TARDE  16 h.",null,null,null,null,null,null,null,null,null,null,null,null,"1º","TARDE  16 h."]
["2º",null,null,null,null,null,null,null,null,null,null,null,null,null,"2º"]
["3º",null,null,null,null,null,null,null,"Oficina Técnica","S01,2,3y4",null,null,null,null,"3º"]
["OP",null,"Mantenimiento en Ingeniería Mecánica","S04","Ingeniería de la Soldadura","S01","Idioma 2","N01,3,5,8",null,null,"Mantenimiento y Fiabilidad de Componentes Mecánicos","S04",null,null,"OP"]
["LE",null,null,null,null,null,null,null,null,null,null,null,null,null,"LE"]
[null,null,"LUNES",2,"MARTES",3,"MIERCOLES",4,"JUEVES",{"$f":"H35+1","v":5},"VIERNES",{"$f":"J35+1","v":6},"SABADO",7]
["1º","MAÑANA  9 h.",null,null,"Fundamentos Matemáticos de la Ingeniería","S01, S02","Electricidad para la Ingeniería Mecánica","S01, S02","Fundamentos de Informática","S03, S04","Expresión Gráfica y Diseño Asistido por Ordenador","S02, S03",null,null,"1º","MAÑANA  9 h."]
["2º",null,"Métodos Estadísticos de la Ingeniería","S01,2,3y4",null,null,null,null,null,null,null,null,null,null,"2º"]
["3º",null,null,null,null,null,null,null,null,null,null,null,null,null,"3º"]
["OP",null,null,null,"Prevención y Seguridad en la Ingeniería","N01","Dibujo Asistido por Ordenador, Aplicaciones Mecánicas","Paris","Robótica","N06","Aire Acondicionado","N06",null,null,"OP"]
["LE",null,null,null,null,null,null,null,null,null,"Instalaciones Frigoríficas","N05",null,null,"LE"]
["1º","TARDE  16 h.",null,null,null,null,null,null,null,null,null,null,null,null,"1º","TARDE  16 h."]
["2º",null,null,null,null,null,null,null,null,null,null,null,null,null,"2º"]
["3º",null,"Diseño de Máquinas","S01,2,3y4",null,null,"Teoría de Estructuras y Construcciones Industriales","S03, S04",null,null,"Motores de Combustión","S03, S04",null,null,"3º"]
["OP",null,null,null,"Instalaciones Electroneumáticas","D.I.E.",null,null,"Química para la Ingeniería","N06","Idioma 1","N05,6,7,8",null,null,"OP"]
["LE",null,null,null,null,null,null,null,null,null,null,null,null,null,"LE"]
[null,null,"LUNES",{"$f":"D35+7","v":9},"MARTES",{"$f":"F35+7","v":10},"MIERCOLES",{"$f":"H35+7","v":11},"JUEVES",{"$f":"H46+1","v":12},"VIERNES",{"$f":"J46+1","v":13},"SABADO",7]
["1º","MAÑANA  9 h.",null,null,null,null,null,null,null,null,null,null,null,null,"1º","MAÑANA  9 h."]
["2º",null,null,null,null,null,null,null,null,null,null,null,null,null,"2º"]
["3º",null,null,null,null,null,null,null,null,null,null,null,null,null,"3º"]
["4º",null,null,null,null,null,null,null,null,null,null,null,null,null,"4º"]
["5º",null,null,null,null,null,null,null,null,null,null,null,null,null,"5º"]
["1º","TARDE  16 h.",null,null,null,null,null,null,null,null,null,null,null,null,"1º","TARDE  16 h."]
["2º",null,null,null,null,null,null,null,null,null,null,null,null,null,"2º"]
["3º",null,null,null,null,null,null,null,null,null,null,null,null,null,"3º"]
["4º",null,null,null,null,null,null,null,null,null,null,null,null,null,"4º"]
["5º",null,null,null,null,null,null,null,null,null,null,null,null,null,"5º"]
[null,null,"LUNES",{"$f":"D46+7","v":16},"MARTES",{"$f":"F46+7","v":17},"MIERCOLES",{"$f":"H46+7","v":18},"JUEVES",{"$f":"H57+1","v":19},"VIERNES",{"$f":"J57+1","v":20},"SABADO",7]
["1º","MAÑANA  9 h.","Fundamentos de Ciencias de Materiales","S33",null,null,"Fundamentos Físicos de la Ingeniería","S01",null,null,"Ampliación de Matemáticas en Ingeniería Mecánica","S04",null,null,"1º","MAÑANA  9 h."]
["2º",null,null,null,"Fundamentos de Tecnología Eléctrica","N06",null,null,"Elasticidad y Resistencia de Materiales","N05, N06",null,null,null,null,"2º"]
["3º",null,null,null,null,null,null,null,null,null,null,null,null,null,"3º"]
["OP",null,"Diseño de Máquinas - II","N32","Instalaciones de Fluidos","S33","Estructuras Metálicas","N22","Energia Solar Fototérmica","N22","Tecnología de Fabricación","N32",null,null,"OP"]
["LE",null,null,null,null,null,null,null,null,null,null,null,null,null,"LE"]
["1º","TARDE  16 h.",null,null,null,null,null,null,null,null,null,null,null,null,"1º","TARDE  16 h."]
["2º",null,null,null,null,null,null,null,null,null,null,null,null,null,"2º"]
["3º",null,null,null,null,null,null,null,null,null,null,null,null,null,"3º"]
["OP",null,"Materiales de Construcción Maquinaria y Automoción","S15","Automóviles","S01","Dibujo Asistido por Ordenador, Aplicaciones Mecánicas","Paris","Idioma 2","N05,6,7,8","Gestión, Planificación y Control de la Producción","N22",null,null,"OP"]
["LE",null,null,null,null,null,null,null,null,null,null,null,null,null,"LE"]
[null,null,"LUNES",{"$f":"D57+7","v":23},"MARTES",{"$f":"F57+7","v":24},"MIERCOLES",{"$f":"H57+7","v":25},"JUEVES",{"$f":"H68+1","v":26},"VIERNES",{"$f":"J68+1","v":27},"SABADO",7]
["1º","MAÑANA  9 h.",null,null,"Fundamentos Matemáticos de la Ingeniería","S04",null,null,"Expresión Gráfica y Diseño Asistido por Ordenador","N05",null,null,null,null,"1º","MAÑANA  9 h."]
["2º",null,"Mecánica y Teoria de Mecanismos","S01, S02",null,null,"Métodos Estadísticos de la Ingeniería","S01,S02",null,null,"Ingeniería Térmica","S01, S02",null,null,"2º"]
["3º",null,null,null,null,null,null,null,"Administración de Empresas y Organización de la Producción","S03,S04",null,null,null,null,"3º"]
["OP",null,"Regulación y Automatización de Máquinas y Procesos","N22","Centrales Térmicas","N06","Ingeniería de la Soldadura","S33",null,null,"Instalaciones Térmicas en la Edificación","S33",null,null,"OP"]
["LE",null,null,null,null,null,null,null,null,null,null,null,null,null,"LE"]
["1º","TARDE  16 h.",null,null,null,null,null,null,null,null,null,null,null,null,"1º","TARDE  16 h."]
["2º",null,null,null,null,null,null,null,null,null,null,null,null,null,"2º"]
["3º",null,null,null,null,null,null,null,null,null,"Biomecánica y Entrenamiento Deportivo","S01",null,null,"3º"]
["OP",null,"Estructuras de Hormigón y Material Compuesto","N01","Mantenimiento en Ingeniería Mecánica","S01","Gestión de Instalaciones Energéticas","S01","Mantenimiento y Fiabilidad de Componentes Mecánicos","S01","Tecnología de Prevención","S01",null,null,"OP"]
["LE",null,"Motores de Competicion","N08","Ampliación de Motores de Combustión","N05",null,null,null,null,"Metodología, Organización y Gestión de la Prevención","S01",null,null,"LE"]
[null,null,"LUNES",{"$f":"D68+7","v":30},"MARTES",{"$f":"F68+7","v":31}]
["1º","MAÑANA  9 h."]
["2º"]
["3º"]
["OP",null,"Historia de la Ciencia y la Tecnología","S.J."]
["LE"]
["1º","TARDE  16 h."]
["2º"]
["3º"]
["OP"]
["LE"]

{"sheet":"88-QUIMICA","index":3,"n_rows":89,"n_cols":16,"rows_kept":89,"cut":false,"hidden":false,"merged":[[0,0,0,15],[84,1,88,1],[68,1,72,1],[73,1,77,1],[79,1,83,1],[24,1,28,1],[2,1,6,1],[7,1,11,1],[13,1,17,1],[18,1,22,1],[62,1,66,1],[35,1,39,1],[29,1,33,1],[46,1,50,1],[51,1,55,1],[57,1,61,1],[40,1,44,1],[2,15,6,15],[7,15,11,15],[13,15,17,15],[18,15,22,15],[73,15,77,15],[68,15,72,15],[62,15,66,15],[57,15,61,15],[46,15,50,15],[51,15,55,15],[35,15,39,15],[24,15,28,15],[29,15,33,15],[40,15,44,15]]}
["I. T. I. ESP. QUIMICA INDUSTRIAL"]
[null,null,"LUNES",11,"MARTES",{"$f":"D2+1","v":12},"MIERCOLES",{"$f":"F2+1","v":13},"JUEVES",{"$f":"H2+1","v":14},"VIERNES",{"$f":"J2+1","v":15},"SABADO",16]
["1º","MAÑANA  9 h.",null,null,null,null,null,null,null,null,null,null,null,null,"1º","MAÑANA  9 h."]
["2º",null,null,null,null,null,null,null,null,null,null,null,null,null,"2º"]
["3º",null,null,null,"Química Industrial","N32, N33",null,null,null,null,null,null,null,null,"3º"]
["OP",null,"Impactos Ambientales","S15",null,null,"Abastecimiento y Potabilización de Aguas","N14","Química Inorgánica","S15","Técnicas de Análisis Instrumental y Separación","N22","Tecnología de Prevención","S01","OP"]
["LE",null,null,null,null,null,null,null,null,null,null,null,null,null,"LE"]
["1º","TARDE  16 h.",null,null,"Fundamentos de Ciencias de Materiales","N25",null,null,null,null,null,null,null,null,"1º","TARDE  16 h."]
["2º",null,"Ingeniería de la Reacción Química","N08",null,null,null,null,null,null,null,null,null,null,"2º"]
["3º",null,null,null,null,null,null,null,null,null,null,null,null,null,"3º"]
["OP",null,null,null,null,null,"Metodología, Organización y Gestión de la Prevención","N08","Informática Aplicada","Paris","Acondicionamiento de Efluentes. Tecnologías Ambientales","N22",null,null,"OP"]
["LE",null,null,null,null,null,null,null,null,null,null,null,null,null,"LE"]
[null,null,"LUNES",{"$f":"L2+3","v":18},"MARTES",{"$f":"D13+1","v":19},"MIERCOLES",{"$f":"F13+1","v":20},"JUEVES",{"$f":"H13+1","v":21},"VIERNES",{"$f":"J13+1","v":22},"SABADO",23]
["1º","MAÑANA  9 h.",null,null,null,null,"Fundamentos de Química","N03",null,null,null,null,null,null,"1º","MAÑANA  9 h."]
["2º",null,"Operaciones Básicas","N22",null,null,null,null,"Química Orgánica","N22",null,null,null,null,"2º"]
["3º",null,null,null,"Control e Instrumentación de Procesos Químicos","N32, N33",null,null,null,null,null,null,null,null,"3º"]
["OP",null,null,null,null,null,null,null,null,null,"Gestión Ambiental en la Industria","N22",null,null,"OP"]
["LE",null,null,null,null,null,null,null,null,null,null,null,null,null,"LE"]
["1º","TARDE  16 h.",null,null,null,null,null,null,null,null,null,null,null,null,"1º","TARDE  16 h."]
["2º",null,"Experimentación en Química","N10",null,null,null,null,null,null,null,null,null,null,"2º"]
["3º",null,null,null,null,null,null,null,null,null,null,null,null,null,"3º"]
["OP",null,null,null,"Comportamiento en Servicio de Materiales, Diagnosis y Prevención","N22","Medio Físico","N08","Pilas de Combustible Como Alternativa E.","N08","Experimentación en Análisis Instrumental","N22",null,null,"OP"]
["LE",null,null,null,null,null,null,null,"Termal Characterization Of Polimeric Mat.","N08",null,null,null,null,"LE"]
[null,null,"LUNES",{"$f":"L13+3","v":25},"MARTES",26,"MIERCOLES",27,"JUEVES",{"$f":"H24+1","v":28},"VIERNES",{"$f":"J24+1","v":29},"SABADO",30]
["1º","MAÑANA  9 h.","Fundamentos Físicos de la Ingeniería","S01, S02",null,null,null,null,"Ampliación de Matemáticas en Ingeniería Mecánica","S03, S04",null,null,null,null,"1º","MAÑANA  9 h."]
["2º",null,null,null,null,null,"Administración de Empresas y Organización de la Producción","S01,2,3y4",null,null,"Química Analítica","N22",null,null,"2º"]
["3º",null,null,null,"Experimentación en Ingeniería Química","N32, N33",null,null,null,null,null,null,null,null,"3º"]
["OP",null,"Historia de la Ciencia y la Tecnología","S.J.",null,null,null,null,null,null,null,null,null,null,"OP"]
["LE",null,null,null,null,null,null,null,null,null,null,null,null,null,"LE"]
["1º","TARDE  16 h.",null,null,null,null,null,null,null,null,null,null,null,null,"1º","TARDE  16 h."]
["2º",null,"Físico - Química","S15",null,null,null,null,null,null,null,null,null,null,"2º"]
["3º",null,null,null,null,null,null,null,"Oficina Técnica","S01,2,3y4",null,null,null,null,"3º"]
["OP",null,null,null,"Plásticos y Composites Industriales","N22","Idioma 2","N01,3,5,8",null,null,null,null,null,null,"OP"]
["LE",null,null,null,null,null,null,null,null,null,null,null,null,null,"LE"]
[null,null,"LUNES",2,"MARTES",3,"MIERCOLES",4,"JUEVES",{"$f":"H35+1","v":5},"VIERNES",{"$f":"J35+1","v":6},"SABADO",7]
["1º","MAÑANA  9 h.",null,null,"Fundamentos Matemáticos de la Ingeniería","S01, S02","Electricidad para la Ingeniería Mecánica","S01, S02","Fundamentos de Informática","S03, S04","Expresión Gráfica y Diseño Asistido por Ordenador","S02, S03",null,null,"1º","MAÑANA  9 h."]
["2º",null,"Métodos Estadísticos de la Ingeniería","S01,2,3y4",null,null,null,null,null,null,null,null,null,null,"2º"]
["3º",null,null,null,null,null,null,null,null,null,null,null,null,null,"3º"]
["OP",null,null,null,"Prevención y Seguridad en la Ingeniería","N01",null,null,null,null,null,null,null,null,"OP"]
["LE",null,null,null,null,null,null,null,null,null,null,null,null,null,"LE"]
["1º","TARDE  16 h.",null,null,null,null,null,null,null,null,null,null,null,null,"1º","TARDE  16 h."]
["2º",null,null,null,null,null,null,null,null,null,null,null,null,null,"2º"]
["3º",null,null,null,null,null,null,null,null,null,null,null,null,null,"3º"]
["OP",null,"Biologia","N01","Sistemas de Información Geográfica","N01","Ingeniería Térmica","N01","Valorización de Residuos Industriales","N01","Idioma 1","N05,6,7,8",null,null,"OP"]
["LE",null,null,null,"Desarrollo Sostenible y Ética Ambiental","N06",null,null,null,null,"Ecología","N01",null,null,"LE"]
[null,null,"LUNES",{"$f":"D35+7","v":9},"MARTES",{"$f":"F35+7","v":10},"MIERCOLES",{"$f":"H35+7","v":11},"JUEVES",{"$f":"H46+1","v":12},"VIERNES",{"$f":"J46+1","v":13},"SABADO",7]
["1º","MAÑANA  9 h.",null,null,null,null,null,null,null,null,null,null,null,null,"1º","MAÑANA  9 h."]
["2º",null,null,null,null,null,null,null,null,null,null,null,null,null,"2º"]
["3º",null,null,null,null,null,null,null,null,null,null,null,null,null,"3º"]
["4º",null,null,null,null,null,null,null,null,null,null,null,null,null,"4º"]
["5º",null,null,null,null,null,null,null,null,null,null,null,null,null,"5º"]
["1º","TARDE  16 h.",null,null,null,null,null,null,null,null,null,null,null,null,"1º","TARDE  16 h."]
["2º",null,null,null,null,null,null,null,null,null,null,null,null,null,"2º"]
["3º",null,null,null,null,null,null,null,null,null,null,null,null,null,"3º"]
["4º",null,null,null,null,null,null,null,null,null,null,null,null,null,"4º"]
["5º",null,null,null,null,null,null,null,null,null,null,null,null,null,"5º"]
[null,null,"LUNES",{"$f":"D46+7","v":16},"MARTES",{"$f":"F46+7","v":17},"MIERCOLES",{"$f":"H46+7","v":18},"JUEVES",{"$f":"H57+1","v":19},"VIERNES",{"$f":"J57+1","v":20},"SABADO",7]
["1º","MAÑANA  9 h.","Fundamentos de Química","N08",null,null,"Fundamentos Físicos de la Ingeniería","S01",null,null,"Ampliación de Matemáticas en Ingeniería Mecánica","S04",null,null,"1º","MAÑANA  9 h."]
["2º",null,null,null,"Ingeniería de la Reacción Química","N08",null,null,"Operaciones Básicas","N08",null,null,null,null,"2º"]
["3º",null,"Química Industrial","S04",null,null,null,null,null,null,null,null,null,null,"3º"]
["OP",null,"Fundamentos de Ciencias de Materiales","S33",null,null,"Técnicas de Análisis Instrumental y Separación","S33",null,null,"Acondicionamiento de Efluentes. Tecnologías Ambientales","N01",null,null,"OP"]
["LE",null,null,null,"Contaminación Ambiental y Acústica","N03",null,null,"Termal Characterization Of Polimeric Mat.","S15",null,null,null,null,"LE"]
["1º","TARDE  16 h.",null,null,null,null,null,null,null,null,null,null,null,null,"1º","TARDE  16 h."]
["2º",null,null,null,null,null,null,null,null,null,null,null,null,null,"2º"]
["3º",null,null,null,null,null,null,null,null,null,null,null,null,null,"3º"]
["OP",null,"Informática Aplicada","Paris","Impactos Ambientales","S15","Abastecimiento y Potabilización de Aguas","S15","Idioma 2","N05,6,7,8",null,null,null,null,"OP"]
["LE",null,null,null,null,null,null,null,null,null,null,null,null,null,"LE"]
[null,null,"LUNES",{"$f":"D57+7","v":23},"MARTES",{"$f":"F57+7","v":24},"MIERCOLES",{"$f":"H57+7","v":25},"JUEVES",{"$f":"H68+1","v":26},"VIERNES",{"$f":"J68+1","v":27},"SABADO",7]
["1º","MAÑANA  9 h.",null,null,"Fundamentos Matemáticos de la Ingeniería","S04",null,null,null,null,null,null,null,null,"1º","MAÑANA  9 h."]
["2º",null,"Experimentación en Química","N08",null,null,"Química Orgánica","N01",null,null,null,null,null,null,"2º"]
["3º",null,null,null,null,null,null,null,null,null,"Experimentación en Ingeniería Química","N06",null,null,"3º"]
["OP",null,"Experimentación en Análisis Instrumental","N05","Comportamiento en Servicio de Materiales, Diagnosis y Prevención","N08",null,null,"Gestión Ambiental en la Industria","S33",null,null,null,null,"OP"]
["LE",null,null,null,null,null,null,null,null,null,null,null,null,null,"LE"]
["1º","TARDE  16 h.",null,null,null,null,null,null,null,null,null,null,null,null,"1º","TARDE  16 h."]
["2º",null,null,null,null,null,null,null,null,null,null,null,null,null,"2º"]
["3º",null,null,null,null,null,null,null,null,null,null,null,null,null,"3º"]
["OP",null,"Química Inorgánica","S15","Medio Físico","S15",null,null,null,null,"Tecnología de Prevención","S01",null,null,"OP"]
["LE",null,null,null,null,null,null,null,null,null,"Metodología, Organización y Gestión de la Prevención","S01",null,null,"LE"]
[null,null,"LUNES",{"$f":"D68+7","v":30},"MARTES",{"$f":"F68+7","v":31}]
["1º","MAÑANA  9 h."]
["2º"]
["3º"]
["OP",null,"Historia de la Ciencia y la Tecnología","S.J."]
["LE"]
["1º","TARDE  16 h."]
["2º"]
["3º"]
["OP"]
["LE"]

{"sheet":"89-DISEÑO","index":4,"n_rows":89,"n_cols":16,"rows_kept":89,"cut":false,"hidden":false,"merged":[[18,15,22,15],[29,15,33,15],[0,0,0,15],[84,1,88,1],[57,1,61,1],[62,1,66,1],[68,1,72,1],[73,1,77,1],[79,1,83,1],[18,1,22,1],[7,1,11,1],[40,1,44,1],[46,15,50,15],[35,15,39,15],[13,15,17,15],[68,15,72,15],[62,15,66,15],[13,1,17,1],[24,15,28,15],[24,1,28,1],[51,1,55,1],[73,15,77,15],[51,15,55,15],[35,1,39,1],[57,15,61,15],[2,1,6,1],[2,15,6,15],[7,15,11,15],[46,1,50,1],[40,15,44,15],[29,1,33,1]]}
["I. T. EN DISEÑO INDUSTRIAL"]
[null,null,"LUNES",11,"MARTES",{"$f":"D2+1","v":12},"MIERCOLES",{"$f":"F2+1","v":13},"JUEVES",{"$f":"H2+1","v":14},"VIERNES",{"$f":"J2+1","v":15},"SABADO",16]
["1º","MAÑANA  9 h.",null,null,null,null,null,null,null,null,null,null,null,null,"1º","MAÑANA  9 h."]
["2º",null,null,null,null,null,null,null,null,null,"Estética y Diseño Industrial","N14",null,null,"2º"]
["3º",null,null,null,null,null,null,null,null,null,null,null,null,null,"3º"]
["OP",null,"Diseño para Hábitat","N08","Diseño para Ocio y Automoción","N08","Elementos de Mobiliario Urbano y Diseño","N08","Bases para el Diseño en Equipamiento","N08",null,null,"Tecnología de Prevención","S01","OP"]
["LE",null,"Diseño para Ocio","N08","Diseño de Detalle en Ocio y Automoción","N08","Diseño de Detalle en Mobiliario Urbano","N08","Diseño de Detalle en Equipamiento","N08",null,null,null,null,"LE"]
["1º","TARDE  16 h.",null,null,null,null,null,null,null,null,null,null,null,null,"1º","TARDE  16 h."]
["2º",null,null,null,null,null,null,null,null,null,null,null,null,null,"2º"]
["3º",null,null,null,null,null,null,null,null,null,null,null,null,null,"3º"]
["OP",null,null,null,null,null,"Metodología, Organización y Gestión de la Prevención","N08","Informática Aplicada","Paris",null,null,null,null,"OP"]
["LE",null,"Ecodiseño","N14","Produccion Multimedia","N14",null,null,null,null,"Color en los Espacios Públicos","N14",null,null,"LE"]
[null,null,"LUNES",{"$f":"L2+3","v":18},"MARTES",{"$f":"D13+1","v":19},"MIERCOLES",{"$f":"F13+1","v":20},"JUEVES",{"$f":"H13+1","v":21},"VIERNES",{"$f":"J13+1","v":22},"SABADO",23]
["1º","MAÑANA  9 h.",null,null,null,null,null,null,null,null,null,null,null,null,"1º","MAÑANA  9 h."]
["2º",null,"Procesos Industriales","N08",null,null,"Metodología del Diseño","N08",null,null,"Sistemas Mecánicos","N03",null,null,"2º"]
["3º",null,null,null,null,null,null,null,null,null,null,null,null,null,"3º"]
["OP",null,null,null,null,null,null,null,null,null,null,null,null,null,"OP"]
["LE",null,null,null,null,null,null,null,null,null,null,null,null,null,"LE"]
["1º","TARDE  16 h.",null,null,null,null,null,null,null,null,null,null,null,null,"1º","TARDE  16 h."]
["2º",null,"Aspectos Económicos y Empresariales del Diseño","N14",null,null,"Diseño del Producto","N14",null,null,null,null,null,null,"2º"]
["3º",null,null,null,null,null,null,null,null,null,null,null,null,null,"3º"]
["OP",null,null,null,null,null,null,null,null,null,null,null,null,null,"OP"]
["LE",null,null,null,null,null,null,null,null,null,null,null,null,null,"LE"]
[null,null,"LUNES",{"$f":"L13+3","v":25},"MARTES",26,"MIERCOLES",27,"JUEVES",{"$f":"H24+1","v":28},"VIERNES",{"$f":"J24+1","v":29},"SABADO",30]
["1º","MAÑANA  9 h.",null,null,null,null,null,null,null,null,null,null,null,null,"1º","MAÑANA  9 h."]
["2º",null,"Diseño Asistido por Ordenador","N01",null,null,"Diseño y Producto (Ergonomía e Impacto Ambiental)","N08",null,null,"Diseño y Generación de Modelos","N14",null,null,"2º"]
["3º",null,null,null,null,null,null,null,null,null,null,null,null,null,"3º"]
["OP",null,"Historia de la Ciencia y la Tecnología","S.J.",null,null,null,null,null,null,null,null,null,null,"OP"]
["LE",null,null,null,null,null,null,null,null,null,null,null,null,null,"LE"]
["1º","TARDE  16 h.",null,null,null,null,null,null,null,null,null,null,null,null,"1º","TARDE  16 h."]
["2º",null,null,null,null,null,null,null,null,null,null,null,null,null,"2º"]
["3º",null,null,null,null,null,"Valenciano Técnico","N07","Oficina Técnica","S01,2,3y4",null,null,null,null,"3º"]
["OP",null,null,null,null,null,"Idioma 2","N01,3,5,8",null,null,null,null,null,null,"OP"]
["LE",null,null,null,null,null,"Valenciano Técnico Avanzado","N07",null,null,null,null,null,null,"LE"]
[null,null,"LUNES",2,"MARTES",3,"MIERCOLES",4,"JUEVES",{"$f":"H35+1","v":5},"VIERNES",{"$f":"J35+1","v":6},"SABADO",7]
["1º","MAÑANA  9 h.",null,null,null,null,null,null,null,null,"Expresión Gráfica y Diseño Asistido por Ordenador - II","S02, S03",null,null,"1º","MAÑANA  9 h."]
["2º",null,"Métodos Estadísticos de la Ingeniería","S01,2,3y4",null,null,"Diseño y Producto (Envase y Embalaje)","N08",null,null,"Cultura y Teoría del Diseño y la Comunicación","N08",null,null,"2º"]
["3º",null,null,null,null,null,null,null,null,null,null,null,null,null,"3º"]
["OP",null,null,null,"Prevención y Seguridad en la Ingeniería","N01",null,null,null,null,null,null,null,null,"OP"]
["LE",null,null,null,null,null,null,null,null,null,null,null,null,null,"LE"]
["1º","TARDE  16 h.",null,null,null,null,null,null,null,null,null,null,null,null,"1º","TARDE  16 h."]
["2º",null,null,null,null,null,null,null,null,null,null,null,null,null,"2º"]
["3º",null,null,null,null,null,null,null,null,null,null,null,null,null,"3º"]
["OP",null,"Electricidad para Diseño","N08",null,null,"Ingeniería Térmica","N01","Química para la Ingeniería","N06","Idioma 1","N05,6,7,8",null,null,"OP"]
["LE",null,null,null,null,null,null,null,null,null,null,null,null,null,"LE"]
[null,null,"LUNES",{"$f":"D35+7","v":9},"MARTES",{"$f":"F35+7","v":10},"MIERCOLES",{"$f":"H35+7","v":11},"JUEVES",{"$f":"H46+1","v":12},"VIERNES",{"$f":"J46+1","v":13},"SABADO",7]
["1º","MAÑANA  9 h.",null,null,null,null,null,null,null,null,null,null,null,null,"1º","1º"]
["2º",null,null,null,null,null,null,null,null,null,null,null,null,null,"2º","2º"]
["3º",null,null,null,null,null,null,null,null,null,null,null,null,null,"3º","3º"]
["4º",null,null,null,null,null,null,null,null,null,null,null,null,null,"4º","4º"]
["5º",null,null,null,null,null,null,null,null,null,null,null,null,null,"5º","5º"]
["1º","TARDE  16 h.",null,null,null,null,null,null,null,null,null,null,null,null,"1º","1º"]
["2º",null,null,null,null,null,null,null,null,null,null,null,null,null,"2º","2º"]
["3º",null,null,null,null,null,null,null,null,null,null,null,null,null,"3º","3º"]
["4º",null,null,null,null,null,null,null,null,null,null,null,null,null,"4º","4º"]
["5º",null,null,null,null,null,null,null,null,null,null,null,null,null,"5º","5º"]
[null,null,"LUNES",{"$f":"D46+7","v":16},"MARTES",{"$f":"F46+7","v":17},"MIERCOLES",{"$f":"H46+7","v":18},"JUEVES",{"$f":"H57+1","v":19},"VIERNES",{"$f":"J57+1","v":20},"SABADO",7]
["1º","MAÑANA  9 h.",null,null,null,null,null,null,null,null,null,null,null,null,"1º","MAÑANA  9 h."]
["2º",null,null,null,null,null,null,null,null,null,"Estética y Diseño Industrial","N14",null,null,"2º"]
["3º",null,null,null,null,null,null,null,null,null,null,null,null,null,"3º"]
["OP",null,"Diseño para Hábitat","N14","Diseño para Ocio y Automoción","N14","Elementos de Mobiliario Urbano y Diseño","N14","Bases para el Diseño en Equipamiento","N14",null,null,null,null,"OP"]
["LE",null,"Diseño para Ocio","N14","Diseño de Detalle en Ocio y Automoción","N14","Diseño de Detalle en Mobiliario Urbano","N14",null,null,"Color en los Espacios Públicos","S15",null,null,"LE"]
["1º","TARDE  16 h.",null,null,null,null,null,null,null,null,null,null,null,null,"1º","TARDE  16 h."]
["2º",null,null,null,null,null,null,null,null,null,null,null,null,null,"2º"]
["3º",null,null,null,null,null,null,null,null,null,null,null,null,null,"3º"]
["OP",null,"Informática Aplicada","Paris",null,null,null,null,"Idioma 2","N05,6,7,8",null,null,null,null,"OP"]
["LE",null,null,null,"Produccion Multimedia","Paris",null,null,"Valenciano Técnico Avanzado","N03",null,null,null,null,"LE"]
[null,null,"LUNES",{"$f":"D57+7","v":23},"MARTES",{"$f":"F57+7","v":24},"MIERCOLES",{"$f":"H57+7","v":25},"JUEVES",{"$f":"H68+1","v":26},"VIERNES",{"$f":"J68+1","v":27},"SABADO",7]
["1º","MAÑANA  9 h.",null,null,null,null,null,null,null,null,null,null,null,null,"1º","MAÑANA  9 h."]
["2º",null,"Aspectos Económicos y Empresariales del Diseño","N14",null,null,"Sistemas Mecánicos","N08","Diseño y Generación de Modelos","N14","Diseño Asistido por Ordenador","N14",null,null,"2º"]
["3º",null,null,null,"Oficina Técnica","N14",null,null,null,null,null,null,null,null,"3º"]
["OP",null,null,null,null,null,"Métodos Estadísticos de la Ingeniería","S01,S02",null,null,null,null,null,null,"OP"]
["LE",null,"Ecodiseño","N03",null,null,null,null,null,null,null,null,null,null,"LE"]
["1º","TARDE  16 h.",null,null,null,null,null,null,null,null,null,null,null,null,"1º","TARDE  16 h."]
["2º",null,null,null,null,null,null,null,null,null,null,null,null,null,"2º"]
["3º",null,null,null,null,null,null,null,null,null,null,null,null,null,"3º"]
["OP",null,null,null,null,null,null,null,null,null,"Tecnología de Prevención","S01",null,null,"OP"]
["LE",null,null,null,null,null,null,null,null,null,"Metodología, Organización y Gestión de la Prevención","S01",null,null,"LE"]
[null,null,"LUNES",{"$f":"D68+7","v":30},"MARTES",{"$f":"F68+7","v":31}]
["1º","MAÑANA  9 h."]
["2º"]
["3º"]
["OP"]
["LE"]
["1º","TARDE  16 h."]
["2º"]
["3º"]
["OP"]
["LE"]

{"sheet":"134-ORGANIZACION","index":5,"n_rows":75,"n_cols":16,"rows_kept":75,"cut":false,"hidden":false,"merged":[[71,1,74,1],[58,1,61,1],[58,15,61,15],[62,1,65,1],[62,15,65,15],[6,15,9,15],[11,1,14,1],[11,15,14,15],[53,1,56,1],[53,15,56,15],[67,1,70,1],[43,1,47,1],[43,15,47,15],[24,15,27,15],[0,0,0,15],[38,1,42,1],[38,15,42,15],[33,15,36,15],[29,1,32,1],[29,15,32,15],[33,1,36,1],[24,1,27,1],[20,1,23,1],[20,15,23,15],[49,1,52,1],[49,15,52,15],[2,1,5,1],[15,1,18,1],[15,15,18,15],[2,15,5,15],[6,1,9,1]]}
["INGENIERIA EN ORGANIZACION INDUSTRIAL"]
[null,null,"LUNES",11,"MARTES",{"$f":"D2+1","v":12},"MIERCOLES",{"$f":"F2+1","v":13},"JUEVES",{"$f":"H2+1","v":14},"VIERNES",{"$f":"J2+1","v":15},"SABADO",16]
["1º","MAÑANA  9 h.",null,null,null,null,null,null,null,null,"Tecnología Mecánica","N25, N26",null,null,"1º","MAÑANA  9 h."]
["2º",null,null,null,null,null,null,null,null,null,null,null,null,null,"2º"]
["OP",null,null,null,null,null,null,null,null,null,null,null,null,null,"OP"]
["LE",null,null,null,null,null,null,null,null,null,null,null,null,null,"LE"]
["1º","TARDE  16 h.","Complejos Industriales","N25, N26",null,null,null,null,null,null,null,null,null,null,"1º","TARDE  16 h."]
["2º",null,null,null,null,null,"Diseño, Planificación y Gestión Sistemas Producción","N21,N22",null,null,null,null,null,null,"2º"]
["OP",null,null,null,null,null,null,null,null,null,"Análisis de Inversiones y Rentabilidad en la Creación de Empresas","S32",null,null,"OP"]
["LE",null,null,null,null,null,null,null,null,null,null,null,null,null,"LE"]
[null,null,"LUNES",{"$f":"L2+3","v":18},"MARTES",{"$f":"D11+1","v":19},"MIERCOLES",{"$f":"F11+1","v":20},"JUEVES",{"$f":"H11+1","v":21},"VIERNES",{"$f":"J11+1","v":22},"SABADO",23]
["1º","MAÑANA  9 h.",null,null,null,null,null,null,null,null,"Tecnología Eléctrica","S01, S02",null,null,"1º","MAÑANA  9 h."]
["2º",null,"Dirección Comercial","S04",null,null,null,null,"Proyectos","S04",null,null,null,null,"2º"]
["OP",null,null,null,"Gestión de la Seguridad","N25",null,null,null,null,null,null,null,null,"OP"]
["LE",null,null,null,null,null,null,null,null,null,null,null,null,null,"LE"]
["1º","TARDE  16 h.",null,null,null,null,"Automatización de Procesos Industriales","N22, N25, N26",null,null,null,null,null,null,"1º","TARDE  16 h."]
["2º",null,null,null,null,null,null,null,null,null,null,null,null,null,"2º"]
["OP",null,null,null,"Fabricación Asistida por Ordenador - Sistemas Avanzados","Paris",null,null,"Ingeniería del Transporte","S04",null,null,null,null,"OP"]
["LE",null,null,null,null,null,null,null,null,null,null,null,null,null,"LE"]
[null,null,"LUNES",{"$f":"L11+3","v":25},"MARTES",26,"MIERCOLES",27,"JUEVES",{"$f":"H20+1","v":28},"VIERNES",{"$f":"J20+1","v":29},"SABADO",30]
["1º","MAÑANA  9 h.","Estrategia y Política de Empresas","S03, S04",null,null,null,null,null,null,"Métodos Cuantitativos de Organización Industrial","S03, S04",null,null,"1º","MAÑANA  9 h."]
["2º",null,null,null,null,null,null,null,null,null,null,null,null,null,"2º"]
["OP",null,null,null,null,null,null,null,null,null,null,null,null,null,"OP"]
["LE",null,null,null,null,null,null,null,null,null,null,null,null,null,"LE"]
["1º","TARDE  16 h.",null,null,null,null,null,null,null,null,null,null,null,null,"1º","TARDE  16 h."]
["2º",null,null,null,null,null,null,null,null,null,null,null,null,null,"2º"]
["OP",null,null,null,null,null,"Gestión de Sistemas Avanzados de Fabricación","N22",null,null,"Logística de Aprovisionamiento y Distribución","S32",null,null,"OP"]
["LE",null,null,null,null,null,null,null,null,null,null,null,null,null,"LE"]
[null,null,"LUNES",2,"MARTES",3,"MIERCOLES",4,"JUEVES",{"$f":"H29+1","v":5},"VIERNES",{"$f":"J29+1","v":6},"SABADO",7]
["1º","MAÑANA  9 h.","Dirección Financiera","N32",null,null,"Estadística Industrial","S03",null,null,"Tecnología Energética y Medioambiental","S04",null,null,"1º","MAÑANA  9 h."]
["2º",null,null,null,null,null,null,null,null,null,null,null,null,null,"2º"]
["OP",null,null,null,"Prevención de Riesgos y Seguridad Industrial","N01",null,null,"Gestión Integrada de Sistemas Industriales","N01",null,null,null,null,"OP"]
["LE",null,null,null,null,null,null,null,null,null,null,null,null,null,"LE"]
["1º","TARDE  16 h.",null,null,null,null,null,null,null,null,null,null,null,null,"1º","TARDE  16 h."]
["2º",null,"Competitividad e Innovación en la Empresa","N32",null,null,"Política Industrial y Tecnológica","S01",null,null,"Economía de la Empresa y Entorno Económico","S01",null,null,"2º"]
["OP",null,null,null,null,null,null,null,null,null,null,null,null,null,"OP"]
["LE",null,null,null,"Atmosfera y Contaminación Atmosférica","N05",null,null,null,null,null,null,null,null,"LE"]
[null,null,"LUNES",{"$f":"D29+7","v":9},"MARTES",{"$f":"F29+7","v":10},"MIERCOLES",{"$f":"H29+7","v":11},"JUEVES",{"$f":"H38+1","v":12},"VIERNES",{"$f":"J38+1","v":13},"SABADO",7]
["1º","MAÑANA  9 h.",null,null,null,null,null,null,null,null,null,null,null,null,"1º","MAÑANA  9 h."]
["2º",null,null,null,null,null,null,null,null,null,null,null,null,null,"2º"]
["3º",null,null,null,null,null,null,null,null,null,null,null,null,null,"3º"]
["4º",null,null,null,null,null,null,null,null,null,null,null,null,null,"4º"]
["5º",null,null,null,null,null,null,null,null,null,null,null,null,null,"5º"]
["1º","TARDE  16 h.",null,null,null,null,null,null,null,null,null,null,null,null,"1º","TARDE  16 h."]
["2º",null,null,null,null,null,null,null,null,null,null,null,null,null,"2º"]
["3º",null,null,null,null,null,null,null,null,null,null,null,null,null,"3º"]
["4º",null,null,null,null,null,null,null,null,null,null,null,null,null,"4º"]
["5º",null,null,null,null,null,null,null,null,null,null,null,null,null,"5º"]
[null,null,"LUNES",{"$f":"D38+7","v":16},"MARTES",{"$f":"F38+7","v":17},"MIERCOLES",{"$f":"H38+7","v":18},"JUEVES",{"$f":"H49+1","v":19},"VIERNES",{"$f":"J49+1","v":20},"SABADO",7]
["1º","MAÑANA  9 h.","Complejos Industriales","N26",null,null,"Tecnología Mecánica","N26",null,null,"Dirección Comercial","N26",null,null,"1º","MAÑANA  9 h."]
["2º",null,null,null,"Diseño, Planificación y Gestión Sistemas Producción","N26",null,null,null,null,null,null,null,null,"2º"]
["OP",null,null,null,null,null,null,null,"Análisis de Inversiones y Rentabilidad en la Creación de Empresas","N33",null,null,null,null,"OP"]
["LE",null,null,null,null,null,null,null,null,null,null,null,null,null,"LE"]
["1º","TARDE  16 h.",null,null,null,null,null,null,null,null,null,null,null,null,"1º","TARDE  16 h."]
["2º",null,null,null,null,null,null,null,null,null,null,null,null,null,"2º"]
["OP",null,null,null,null,null,null,null,null,null,null,null,null,null,"OP"]
["LE",null,null,null,null,null,null,null,null,null,null,null,null,null,"LE"]
[null,null,"LUNES",{"$f":"D49+7","v":23},"MARTES",{"$f":"F49+7","v":24},"MIERCOLES",{"$f":"H49+7","v":25},"JUEVES",{"$f":"H58+1","v":26},"VIERNES",{"$f":"J58+1","v":27},"SABADO",7]
["1º","MAÑANA  9 h.","Automatización de Procesos Industriales","S04",null,null,"Tecnología Eléctrica","N26",null,null,"Estrategia y Política de Empresas","N26",null,null,"1º","MAÑANA  9 h."]
["2º",null,null,null,null,null,null,null,"Proyectos","N26",null,null,null,null,"2º"]
["OP",null,null,null,"Gestión de la Seguridad","N33",null,null,null,null,null,null,null,null,"OP"]
["LE",null,null,null,null,null,null,null,null,null,null,null,null,null,"LE"]
["1º","TARDE  16 h.",null,null,null,null,null,null,null,null,null,null,null,null,"1º","TARDE  16 h."]
["2º",null,null,null,null,null,null,null,null,null,null,null,null,null,"2º"]
["OP",null,null,null,"Fabricación Asistida por Ordenador - Sistemas Avanzados","N01",null,null,"Ingeniería del Transporte","N06",null,null,null,null,"OP"]
["LE",null,null,null,null,null,null,null,null,null,null,null,null,null,"LE"]
[null,null,"LUNES",{"$f":"D58+7","v":30},"MARTES",{"$f":"F58+7","v":31}]
["1º","MAÑANA  9 h."]
["2º",null,"Métodos Cuantitativos de Organización Industrial","S01, S02"]
["OP"]
["LE"]
["1º","TARDE  16 h."]
["2º"]
["OP"]
["LE"]

{"sheet":"136-AERONAUTICA","index":6,"n_rows":89,"n_cols":16,"rows_kept":89,"cut":false,"hidden":false,"merged":[[0,0,0,15],[2,15,6,15],[7,15,11,15],[13,15,17,15],[2,1,6,1],[7,1,11,1],[13,1,17,1],[18,15,22,15],[40,1,44,1],[35,15,39,15],[40,15,44,15],[29,1,33,1],[29,15,33,15],[35,1,39,1],[24,15,28,15],[24,1,28,1],[18,1,22,1],[57,1,61,1],[57,15,61,15],[62,1,66,1],[62,15,66,15],[46,1,50,1],[46,15,50,15],[51,1,55,1],[51,15,55,15],[79,1,83,1],[84,1,88,1],[68,1,72,1],[68,15,72,15],[73,1,77,1],[73,15,77,15]]}
["INGENIERÍA AERONAUTICA"]
[null,null,"LUNES",11,"MARTES",{"$f":"D2+1","v":12},"MIERCOLES",{"$f":"F2+1","v":13},"JUEVES",{"$f":"H2+1","v":14},"VIERNES",{"$f":"J2+1","v":15},"SABADO",16]
["1º","MAÑANA  9 h.",null,null,null,null,null,null,null,null,null,null,null,null,"1º","MAÑANA  9 h."]
["2º",null,null,null,"Tecnología Aeroespacial","S15",null,null,"Termodinámica","N22",null,null,null,null,"2º"]
["3º",null,"Diseño Aeronáutico Asistido por Ordenador","N05, N06",null,null,null,null,null,null,"Aerodinámica","N05, N06",null,null,"3º"]
["4º",null,null,null,null,null,"Producción Aeroespacial","Japon, Paris",null,null,null,null,null,null,"4º"]
["5º",null,null,null,null,null,null,null,null,null,null,null,null,null,"5º"]
["1º","TARDE  16 h.",null,null,null,null,null,null,null,null,"Ciencia y Tecnología de Materiales","S06",null,null,"1º","TARDE  16 h."]
["2º",null,null,null,null,null,null,null,null,null,null,null,null,null,"2º"]
["3º",null,null,null,null,null,null,null,null,null,null,null,null,null,"3º"]
["4º",null,"Explotación del Transporte Aéreo","N03",null,null,null,null,null,null,"Instalaciones Eléctricas","S33",null,null,"4º"]
["5º",null,null,null,"Mantenimiento de Sistemas Propulsivos","N02","Aeroelasticidad","N02","Sistemas de Navegación Aérea. Sistemas Radar","N02",null,null,null,null,"5º"]
[null,null,"LUNES",{"$f":"L2+3","v":18},"MARTES",{"$f":"D13+1","v":19},"MIERCOLES",{"$f":"F13+1","v":20},"JUEVES",{"$f":"H13+1","v":21},"VIERNES",{"$f":"J13+1","v":22},"SABADO",23]
["1º","MAÑANA  9 h.",null,null,null,null,null,null,null,null,null,null,null,null,"1º","MAÑANA  9 h."]
["2º",null,null,null,null,null,null,null,null,null,null,null,null,null,"2º"]
["3º",null,"Motores Alternativos","N05, N06",null,null,null,null,null,null,"Métodos Matemáticos II","N25, N26",null,null,"3º"]
["4º",null,null,null,"Métodos Experimentales en Ingeniería Aeronáutica","S15","Aeronaves, Astronáutica e Ingeniería Espacial","N25, N26","Derecho Aeronáutico","N10",null,null,null,null,"4º"]
["5º",null,null,null,"Derecho Espacial","N22",null,null,"Turbulencia, Teoría y Simulación Numérica","N03",null,null,null,null,"5º"]
["1º","TARDE  16 h.",null,null,"Fundamentos Físicos de la Ingeniería","R.Alonso",null,null,null,null,"Fundamentos Matemáticos de la Ingeniería","S06",null,null,"1º","TARDE  16 h."]
["2º",null,"Circuitos Electrónicos","S06",null,null,"Control Automático","S04",null,null,null,null,null,null,"2º"]
["3º",null,null,null,null,null,null,null,null,null,null,null,null,null,"3º"]
["4º",null,null,null,null,null,null,null,null,null,"Cálculo Estructural, Método de los Elementos Finitos","N25, N26",null,null,"4º"]
["5º",null,"Ampliación de Motores Alternativos","N03","Explotación, Mantenimiento y Gestión de Aeropuertos","N03","Integridad Estructural de Sistemas Mecánicos","N03","Turbomáquinas Térmicas y Aeroacústicas","N03",null,null,null,null,"5º"]
[null,null,"LUNES",{"$f":"L13+3","v":25},"MARTES",26,"MIERCOLES",27,"JUEVES",{"$f":"H24+1","v":28},"VIERNES",{"$f":"J24+1","v":29},"SABADO",30]
["1º","MAÑANA  9 h.",null,null,null,null,null,null,null,null,null,null,null,null,"1º","MAÑANA  9 h."]
["2º",null,null,null,"Teoría de Estructuras","S33",null,null,"Mecánica de Fluidos","S32",null,null,null,null,"2º"]
["3º",null,"Ingeniería Aeroportuaria","N25, N26",null,null,null,null,null,null,"Vibraciones","N25, N26",null,null,"3º"]
["4º",null,null,null,"Diseño Estructural de Aviones","N05,N06","Mecánica de Vuelo","N05,N06",null,null,null,null,null,null,"4º"]
["5º",null,null,null,null,null,null,null,"Construcción de Aeropuertos","N03",null,null,null,null,"5º"]
["1º","TARDE  16 h.","Métodos Estadísticos","S06",null,null,"Idioma 2","N01,3,5,8",null,null,"Mecánica","S06",null,null,"1º","TARDE  16 h."]
["2º",null,null,null,null,null,null,null,null,null,null,null,null,null,"2º"]
["3º",null,null,null,null,null,null,null,null,null,null,null,null,null,"3º"]
["4º",null,null,null,"Combustión","N03",null,null,"Sistemas de Navegación","Coventry",null,null,null,null,"4º"]
["5º",null,"Aero-Reactores y Motores Cohete","N03",null,null,"Vehículos Espaciales y Misiles","S01",null,null,"Materiales Estructurales","S15",null,null,"5º"]
[null,null,"LUNES",2,"MARTES",3,"MIERCOLES",4,"JUEVES",{"$f":"H35+1","v":5},"VIERNES",{"$f":"J35+1","v":6},"SABADO",{"$f":"L35+1","v":7}]
["1º","MAÑANA  9 h.","Expresión Gráfica","S15",null,null,"Transporte Aéreo","S15",null,null,"Computadores y Programación","S15",null,null,"1º","MAÑANA  9 h."]
["2º",null,null,null,"Circuitos Eléctricos","S15",null,null,"Navegación y Circulación Aérea","S15",null,null,null,null,"2º"]
["3º",null,null,null,null,null,null,null,null,null,"Fenómenos de Transporte de Masa y Energía","N21",null,null,"3º"]
["4º",null,null,null,"Estructuras Aeroespaciales","Coventry","Diseño y Construcción de Aeropuertos","S.Onofre",null,null,null,null,null,null,"4º"]
["5º",null,"Proyectos","N03",null,null,"Planificación y Diseño de Aeropuertos","Coventry","Sistemas de Control de Vuelo","Coventry","Instalaciones Aeroportuarias","Coventry",null,null,"5º"]
["1º","TARDE  16 h.",null,null,null,null,null,null,null,null,null,null,null,null,"1º","TARDE  16 h."]
["2º",null,null,null,"Ampliación de Mecánica","S15",null,null,"Ampliación de Matemáticas","S15",null,null,null,null,"2º"]
["3º",null,"Tecnología Electrónica","S32",null,null,null,null,null,null,null,null,null,null,"3º"]
["4º",null,null,null,null,null,"Informática Aplicada","SOnofre",null,null,"Motores a Reacción y Turbinas de Gas","Coventry",null,null,"4º"]
["5º",null,"Mecánica de Vuelo II","S15","Arquitectura y Tecnología de los Sistemas Embarcados","Coventry",null,null,"Estructuras Aeroportuarias","Coventry","Idioma 1","N05,6,7,8",null,null,"5º"]
[null,null,"LUNES",{"$f":"D35+7","v":9},"MARTES",{"$f":"F35+7","v":10},"MIERCOLES",{"$f":"H35+7","v":11},"JUEVES",{"$f":"H46+1","v":12},"VIERNES",{"$f":"J46+1","v":13},"SABADO",{"$f":"L46+1","v":14}]
["1º","MAÑANA  9 h.",null,null,null,null,null,null,null,null,null,null,null,null,"1º","MAÑANA  9 h."]
["2º",null,null,null,null,null,null,null,null,null,null,null,null,null,"2º"]
["3º",null,null,null,null,null,null,null,null,null,null,null,null,null,"3º"]
["4º",null,null,null,null,null,null,null,null,null,null,null,null,null,"4º"]
["5º",null,null,null,null,null,null,null,null,null,null,null,null,null,"5º"]
["1º","TARDE  16 h.",null,null,null,null,null,null,null,null,null,null,null,null,"1º","TARDE  16 h."]
["2º",null,null,null,null,null,null,null,null,null,null,null,null,null,"2º"]
["3º",null,null,null,null,null,null,null,null,null,null,null,null,null,"3º"]
["4º",null,null,null,null,null,null,null,null,null,null,null,null,null,"4º"]
["5º",null,null,null,null,null,null,null,null,null,null,null,null,null,"5º"]
[null,null,"LUNES",{"$f":"D46+7","v":16},"MARTES",{"$f":"F46+7","v":17},"MIERCOLES",{"$f":"H46+7","v":18},"JUEVES",{"$f":"H57+1","v":19},"VIERNES",{"$f":"J57+1","v":20},"SABADO",{"$f":"L57+1","v":21}]
["1º","MAÑANA  9 h.","Ciencia y Tecnología de Materiales","S32",null,null,"Fundamentos Físicos de la Ingeniería","S32",null,null,"Fundamentos Matemáticos de la Ingeniería","S32",null,null,"1º","MAÑANA  9 h."]
["2º",null,null,null,"Circuitos Electrónicos","Coventry",null,null,null,null,null,null,null,null,"2º"]
["3º",null,null,null,null,null,null,null,null,null,null,null,null,null,"3º"]
["4º",null,null,null,"Explotación del Transporte Aéreo","S.Onofre",null,null,"Producción Aeroespacial","N25",null,null,null,null,"4º"]
["5º",null,"Mantenimiento de Sistemas Propulsivos","Coventry","Derecho Espacial","N05","Aeroelasticidad","Coventry","Métodos Experimentales en Ingeniería Aeronáutica","Coventry","Explotación, Mantenimiento y Gestión de Aeropuertos","Coventry",null,null,"5º"]
["1º","TARDE  16 h.",null,null,null,null,null,null,"Idioma 2","N05,6,7,8",null,null,null,null,"1º","TARDE  16 h."]
["2º",null,null,null,"Tecnología Aeroespacial","Coventry",null,null,"Termodinámica","Coventry",null,null,null,null,"2º"]
["3º",null,"Diseño Aeronáutico Asistido por Ordenador","N32",null,null,"Aerodinámica","N32",null,null,"Motores Alternativos","N32",null,null,"3º"]
["4º",null,null,null,"Instalaciones Eléctricas","S.Onofre",null,null,null,null,null,null,null,null,"4º"]
["5º",null,"Sistemas de Navegación Aérea. Sistemas Radar","Coventry",null,null,"Ampliación de Motores Alternativos","Coventry",null,null,"Integridad Estructural de Sistemas Mecánicos","Coventry",null,null,"5º"]
[null,null,"LUNES",{"$f":"D57+7","v":23},"MARTES",{"$f":"F57+7","v":24},"MIERCOLES",{"$f":"H57+7","v":25},"JUEVES",{"$f":"H68+1","v":26},"VIERNES",{"$f":"J68+1","v":27},"SABADO",{"$f":"L68+1","v":28}]
["1º","MAÑANA  9 h.",null,null,"Métodos Estadísticos","S32",null,null,"Mecánica","S32",null,null,null,null,"1º","MAÑANA  9 h."]
["2º",null,null,null,null,null,null,null,null,null,null,null,null,null,"2º"]
["3º",null,null,null,null,null,null,null,null,null,null,null,null,null,"3º"]
["4º",null,"Aeronaves, Astronáutica e Ingeniería Espacial","N25",null,null,"Diseño Estructural de Aviones","N25",null,null,"Cálculo Estructural, Método de los Elementos Finitos","N25",null,null,"4º"]
["5º",null,"Turbulencia, Teoría y Simulación Numérica","Coventry","Turbomáquinas Térmicas y Aeroacústicas","Coventry",null,null,"Aero-Reactores y Motores Cohete","Coventry",null,null,null,null,"5º"]
["1º","TARDE  16 h.",null,null,null,null,null,null,null,null,null,null,null,null,"1º","TARDE  16 h."]
["2º",null,"Control Automático","Coventry",null,null,"Teoría de Estructuras","Coventry",null,null,"Mecánica de Fluidos","Coventry",null,null,"2º"]
["3º",null,null,null,"Métodos Matemáticos II","N21",null,null,"Ingeniería Aeroportuaria","N21",null,null,null,null,"3º"]
["4º",null,null,null,null,null,"Combustión","S.Onofre",null,null,null,null,null,null,"4º"]
["5º",null,null,null,"Vehículos Espaciales y Misiles","Coventry",null,null,"Construcción de Aeropuertos","Coventry",null,null,null,null,"5º"]
[null,null,"LUNES",{"$f":"D68+7","v":30},"MARTES",{"$f":"F68+7","v":31}]
["1º","MAÑANA  9 h."]
["2º"]
["3º"]
["4º",null,"Mecánica de Vuelo","S01"]
["5º"]
["1º","TARDE  16 h."]
["2º"]
["3º",null,"Vibraciones","S01"]
["4º"]
["5º"]